Cogmind - Beta 14 @@@ ROGUE MODE // 2024.09.08 @ 20:21:45 Player: Spoodle Result: Destroyed by Y-64 Sentinel with KE Penetrator Performance ------------- Evolutions (5) 2500 Regions Visited (17) 3400 Robots Destroyed (356) 1780 Value Destroyed (13478) 13478 Prototype IDs (22) 440 Alien Tech Used (0) 0 Bonus (6702) 6702 TOTAL SCORE: 28300 Bonus ------- Triggered High Security 500 High Alert Combat Kills 4220 Follower Combat Kills 1416 Entered Garrisons 400 Met Data Miner 300 Acquired ECA 300 Friendly Fire -434 Cogmind --------- Core Integrity 0/1000 Matter 274/300 Energy 455/500 System Corruption 34% Temperature Cool (9) Movement Treading (170) Location -5/Extension Parts ------- > --- POWER (2) -------- (None) > --- PROPULSION (4) --- Armored Medium Treads > --- UTILITY (8) ------ Advanced Heat Sink Improved Energy Well Encrypted Comm Array Improved Transmission Jammer System Shield > --- WEAPON (3) ------- Advanced Plasma Cannon > --- INVENTORY (5) ---- Advanced Sensor Array Dynamic Insulation System Improved Recalibrator Improved Datajack Peak State ------------ > --- POWER ------------ Neutrino Core Light Antimatter Reactor > --- PROPULSION ------- Armored Medium Treads Armored Medium Treads Improved Heavy Treads > --- UTILITY ---------- Advanced Cooling System High-capacity Storage Unit Advanced Signal Interpreter Advanced Targeting Computer Improved Transmission Jammer Hardened Heavy Armor Plating Improved Shield Generator > --- WEAPON ----------- PD Laser > --- INVENTORY -------- Improved Treads Improved Cooling System Energy Well Advanced Sensor Array Encrypted Comm Array Weapon Shielding Improved Heavy Armor Plating Improved Shield Generator Improved Hacking Suite System Shield Improved Component Analysis Suite Dynamic Insulation System Drone Bay Plasma Cannon Plasma Cannon Heavy Plasma Cannon Heavy Phase Cannon Enhanced Gauss Cannon Heavy Rocket Launcher [Rating: 101] Favorites ----------- Power Neutrino Core Engine Reinforced Deuterium Engine Power Core Neutrino Core Reactor Light Antimatter Reactor Propulsion Light Treads Treads Light Treads Leg Flexi-carbon Leg Wheel Compact Wheel Utility High-capacity Storage Unit Device Seismic Detector Storage High-capacity Storage Unit Processor Advanced Targeting Computer Hackware System Shield Protection Hardened Medium Armor Plating Weapon Field Laser Energy Gun Field Laser Energy Cannon Heavy Plasma Cannon Ballistic Gun Assault Rifle Ballistic Cannon Hypervelocity Gauss Cannon Launcher Heavy Rocket Launcher Special Weapon Mining Laser Slashing Weapon Power Sword Build | -11 -10 -10 -9 -9 -9 -8 -8 -8 -7 -7 -7 -7 -6 -6 -6 -5 -5 ------- Run | Yrd Mat Min Mat Min Exi Min Mat Gar Fac Low Low Dat Pro Fac Gar Fac Ext Slots Evolved 10 | . . . 2 . . . 2 . 2 . . . . 2 . 2 . Power 1 | . . . . . . . . . . . . . . 1 . . . Propulsion 2 | . . . 1 . . . 1 . . . . . . . . . . Utility 6 | . . . 1 . . . 1 . 2 . . . . 1 . 1 . Weapon 1 | . . . . . . . . . . . . . . . . 1 . Parts Attached 449 | 7 21 14 52 4 . 10 50 26 33 7 5 1 19 26 29 89 56 Power 35 | 1 3 . 7 . . . 1 2 1 1 . . . 1 4 9 5 Engine 19 | 1 3 . 5 . . . 1 1 . 1 . . . 1 1 3 2 Core 10 | . . . 2 . . . . 1 1 . . . . . 2 3 1 Reactor 6 | . . . . . . . . . . . . . . . 1 3 2 Propulsion 85 | 2 5 4 7 2 . 1 5 4 4 . . . 5 4 9 19 14 Treads 58 | . 3 1 7 2 . 1 5 4 2 . . . 5 . 1 16 11 Leg 18 | 2 . 2 . . . . . . 1 . . . . 1 6 3 3 Wheel 9 | . 2 1 . . . . . . 1 . . . . 3 2 . . Hover . | . . . . . . . . . . . . . . . . . . Flight . | . . . . . . . . . . . . . . . . . . Utility 177 | 2 8 6 18 2 . 9 15 6 20 2 5 . 4 14 7 40 19 Device 119 | 1 2 4 8 1 . 8 8 4 15 2 4 . 4 12 6 28 12 Storage 8 | 1 2 . . . . 1 . . . . . . . . 1 2 1 Processor 6 | . . . . . . . . . 2 . . . . . . 4 . Hackware 9 | . . . . . . . 4 . 1 . . . . 1 . 3 . Protection 35 | . 4 2 10 1 . . 3 2 2 . 1 . . 1 . 3 6 Artifact . | . . . . . . . . . . . . . . . . . . Weapon 152 | 2 5 4 20 . . . 29 14 8 4 . 1 10 7 9 21 18 Energy Gun 32 | . . . 4 . . . 14 5 . . . . . 1 . 6 2 Energy Cannon 55 | . . 2 9 . . . 10 5 3 . . . 3 4 4 10 5 Ballistic Gun 19 | 2 4 2 7 . . . . . . . . . 1 . . . 3 Ballistic Cannon 20 | . . . . . . . . 3 4 2 . 1 3 . 1 2 4 Launcher 21 | . . . . . . . 2 1 1 2 . . 3 2 3 3 4 Special Weapon 1 | . 1 . . . . . . . . . . . . . . . . Impact Weapon . | . . . . . . . . . . . . . . . . . . Slashing Weapon 4 | . . . . . . . 3 . . . . . . . 1 . . Piercing Weapon . | . . . . . . . . . . . . . . . . . . Special Melee Weapon . | . . . . . . . . . . . . . . . . . . Unidentified Prototypes 9 | . . . 3 . . . 2 . 1 . . . . 1 . 2 . Corrupted Parts 1 | . . . . . . . . . . . . . . . . . 1 System Corruption 10 | . . . . . . . . . . . . . . . . . 10 Parts Lost 76 | . 2 . 7 . . . . 2 4 . 1 . 4 2 3 27 24 Power 11 | . 1 . 1 . . . . . 1 . . . . . 1 4 3 Propulsion 19 | . 1 . 2 . . . . . . . . . 4 1 1 5 5 Utility 31 | . . . 3 . . . . 1 3 . 1 . . 1 1 12 9 Weapon 15 | . . . 1 . . . . 1 . . . . . . . 6 7 Highest Loss Streak 19 | . 1 . 2 . . . . 1 2 . 1 . 2 1 1 6 19 To Critical Strikes . | . . . . . . . . . . . . . . . . . . Average Slot Usage (%) 94 | . 99 100 98 100 100 99 100 96 91 92 92 76 92 95 88 81 97 Engine 6 | . 13 14 8 . . . 5 7 . . 7 7 7 13 6 2 10 Core 3 | . . . 1 11 11 11 3 1 6 6 . . . . 1 4 . Treads 20 | . 16 21 30 33 33 33 36 33 17 15 15 15 21 15 3 15 13 Leg 2 | . 10 . . . . . . . . . . . . . 11 1 8 Wheel 2 | . 1 6 2 . . . . . 4 7 7 7 1 7 7 . . Device 13 | . 6 10 10 11 11 10 16 18 12 15 15 15 15 23 19 12 11 Storage 8 | . 14 14 11 11 11 11 9 9 7 7 7 7 7 6 6 5 5 Processor 6 | . . . . . . . . . 15 15 15 15 15 10 6 15 11 Hackware 1 | . . . . . . . 1 . 2 . . . . 1 . 2 5 Protection 7 | . 7 3 11 11 11 11 8 9 6 7 7 7 7 1 6 1 8 Energy Gun 5 | . . . 5 22 22 22 14 10 . . . . . . . 3 6 Energy Cannon 3 | . . 12 5 . . . 2 5 . . . . 5 8 8 5 2 Ballistic Gun 4 | . 27 15 10 . . . . . . . . . 1 . . . 6 Ballistic Cannon 2 | . . . . . . . . 1 14 14 15 . 7 3 2 1 . Peak Build Rating 101 | 7 9 13 22 22 22 22 34 54 63 62 60 51 59 73 81 101 94 Average Rating 45 | 5 7 9 15 20 22 20 30 37 58 58 57 45 54 62 67 82 82 On Entrance 39 | . 7 9 9 20 22 22 21 33 53 62 57 57 51 59 60 80 84 Naked Turns . | . . . . . . . . . . . . . . . . . . Heaviest Build 117 | 12 32 34 47 42 42 62 72 84 100 98 82 71 81 105 108 117 97 Greatest Support 129 | 20 40 40 60 60 60 60 84 114 114 28 28 28 114 114 75 129 108 Greatest Overweight (x) 28 | . 1 1 2 . . 1 . . 3 3 2 2 2 6 6 2 28 Average Overweight (x) . | . . . . . . . . . 1 3 2 2 . 1 3 . . Largest Inventory Capacity 20 | 8 15 15 15 15 15 20 20 20 20 20 20 20 20 20 20 20 20 Average Capacity 18 | 7 12 15 15 15 15 18 20 20 20 20 20 20 20 20 20 20 19 Most Carried 20 | 7 15 15 15 15 15 17 20 20 20 20 20 20 20 20 20 20 20 Average Carried 17 | 4 11 14 14 14 15 15 19 19 18 20 19 20 19 19 19 17 17 Final Capacity 20 | 8 15 15 15 15 15 20 20 20 20 20 20 20 20 20 20 20 20 Final Carried 20 | 7 15 15 15 15 15 17 20 20 20 20 20 20 18 19 20 14 20 Class Distribution -------------------- 48% | Mutant 33% | Scavenger-Mutant 8% | Scavenger-Tank 7% | Scavenger-Gunner Dominant Class ---------------- Mutant | -10/Materials Mutant | -10/Mines Scavenger-Mutant | -9/Materials Scavenger-Mutant | -9/Mines Scavenger-Mutant | -9/Exiles Scavenger-Mutant | -8/Mines Mutant | -8/Materials Mutant | -8/Garrison Mutant | -7/Factory Mutant | -7/Lower Caves Mutant | -7/Lower Caves Mutant | -7/Data Miner Mutant | -6/Proximity Caves Mutant | -6/Factory Scavenger-Mutant | -6/Garrison Scavenger-Gunner | -5/Factory Scavenger-Tank | -5/Extension Resources | -11 -10 -10 -9 -9 -9 -8 -8 -8 -7 -7 -7 -7 -6 -6 -6 -5 -5 ----------- Run | Yrd Mat Min Mat Min Exi Min Mat Gar Fac Low Low Dat Pro Fac Gar Fac Ext Matter Collected 8184 | 286 633 202 793 61 . 96 500 295 1049 339 127 . 262 477 598 1257 1209 Remotely . | . . . . . . . . . . . . . . . . . . Salvage Created 12717 | 127 593 123 1474 108 . 279 1225 744 1077 303 31 . 207 613 1599 2664 1550 Parts 679 | 13 45 10 109 9 . 9 62 52 89 6 . . 10 27 56 126 56 Haulers Intercepted 9 | . 2 . 3 . . . 2 . . . . . . . . 1 1 Recyclers Shooed 7 | . . 1 1 . . 1 . . . . . . . 1 . 1 2 Parts Field Recycled . | . . . . . . . . . . . . . . . . . . Retrieved Matter . | . . . . . . . . . . . . . . . . . . Parts Self-Destructed 13 | . . . . . . . . . . 8 . . 5 . . . . Prevented . | . . . . . . . . . . . . . . . . . . Kills | -11 -10 -10 -9 -9 -9 -8 -8 -8 -7 -7 -7 -7 -6 -6 -6 -5 -5 ------- Run | Yrd Mat Min Mat Min Exi Min Mat Gar Fac Low Low Dat Pro Fac Gar Fac Ext Combat Hostiles Destroyed 278 | . 17 5 33 1 . 4 22 29 22 11 1 . 11 9 27 51 35 Melee 5 | . . . . . . . 2 . . . . . . . . 1 2 Guns 97 | . 17 3 28 1 . 4 12 15 . . . . . . . 7 10 Cannons 90 | . . 2 5 . . . 5 6 19 2 1 . 3 6 12 27 2 AOE 80 | . . . . . . . 2 6 3 9 . . 8 3 14 14 21 Classes Destroyed 20 | 2 6 1 1 . . 1 . 2 3 1 . . 1 . . 1 1 Worker 19 | . 3 2 4 . . 1 . . 2 . . . . . . 7 . Builder 11 | . . . . . . . . . 1 . . . . 2 . 8 . Tunneler 5 | 2 1 . . 1 . . . . . . . . . 1 . . . Hauler 9 | . 2 . 3 . . . 2 . . . . . . . . 1 1 Recycler 7 | 1 . . . 1 . . 1 . 1 . . . . 1 . . 2 Mechanic 2 | . . . . . . . . . . . . . . . . . 2 Operator 6 | . 2 . 1 . . . . . . . . . . 2 . 1 . Watcher 17 | . 2 . 4 . . . 2 . 4 . . . . 1 . 4 . Swarmer 86 | . 9 3 13 . . . 4 16 4 3 . . 6 . 16 4 8 Saboteur 3 | . . . . . . . . . . . . . . . . 2 1 Grunt 100 | . 8 . 10 . . 4 12 . 8 4 . . 3 6 6 24 15 Brawler 8 | . . . . . . 1 . . . 2 . . . . . 1 4 Duelist 9 | . . . . . . . . . . 1 . . 1 . . 4 3 Protector 3 | . . . . . . . . . 1 . . . . . . 1 1 Sentry 39 | . . . 10 1 . . 6 7 3 1 1 . 1 1 2 5 1 Demolisher 2 | . . 2 . . . . . . . . . . . . . . . Specialist 2 | . . . . . . . . 2 . . . . . . . . . Hunter 11 | . . . . . . . . . 1 . . . . 2 2 5 1 Programmer 15 | . . . . . . . . 4 5 . . . . . 1 5 . Behemoth 2 | . . . . . . . . . . . . . 1 . . . 1 Best Kill Streak 14 | 1 6 3 7 1 . 1 5 7 5 9 1 . 4 4 14 12 13 Combat Bots Only 14 | . 5 3 5 1 . 1 4 7 4 9 1 . 4 3 14 6 12 Max Kills in Single Turn 4 | 1 1 1 2 1 . 1 3 3 4 3 1 . 3 2 4 4 4 Gunslinging 1 | . . . 1 . . . . 1 . . . . . . . . 1 Exploded 4 | . . . . . . . 2 3 3 3 . . 2 1 4 2 4 Melee 1 | . . . . . . . 1 . . . . . . . . 1 1 Uniques/NPCs Destroyed . | . . . . . . . . . . . . . . . . . . Combat | -11 -10 -10 -9 -9 -9 -8 -8 -8 -7 -7 -7 -7 -6 -6 -6 -5 -5 -------- Run | Yrd Mat Min Mat Min Exi Min Mat Gar Fac Low Low Dat Pro Fac Gar Fac Ext Hostile Shots Fired 2022 | . 88 20 215 7 . 13 132 176 129 37 33 . 100 99 154 407 412 Missed 563 | . 22 1 53 . . 3 53 38 39 12 8 . 26 32 52 105 119 Damage Taken 20746 | . 678 385 1783 101 . 151 723 1906 1028 406 153 . 1000 452 1169 5706 5105 Core 1915 | . 87 64 129 . . 14 71 116 121 57 . . 119 63 72 486 516 Absorbed by Shields 2045 | . . . . . . . 264 256 59 . . . . 193 448 438 387 Reduced by Siege Mode 279 | . . . . . . . . 144 . . . . . . . 135 . Redirected to Shielding 81 | . . . . . . . . . . . . . . . . . 81 Ignored by Resistances 1327 | . . . . . . . . . 121 126 34 . 177 145 40 . 684 Regen/Repaired (Parts) 644 | . 170 . 88 . . . . . . . . . . . . 386 . Core Remaining (%) 68 | 100 . 39 . . . 64 . 66 . . . . 57 . 84 . . Volleys Fired 738 | 4 79 14 96 5 . 11 66 63 59 9 4 . 25 36 62 138 67 Largest 3 | 2 2 2 2 2 . 2 2 2 2 2 2 . 2 2 2 3 3 Hottest 250 | 40 100 112 120 126 . 126 143 143 151 122 122 . 147 155 155 250 210 Shots Fired 1454 | 8 157 28 191 10 . 22 130 118 110 12 9 . 37 45 103 307 167 Gun 743 | 8 156 24 149 10 . 22 101 79 . . . . 1 . . 59 134 Cannon 653 | . . 4 42 . . . 27 37 108 7 9 . 26 40 96 234 23 Launcher 57 | . . . . . . . 2 2 2 5 . . 10 5 7 14 10 Special 1 | . 1 . . . . . . . . . . . . . . . . Kinetic 621 | 8 156 24 120 . . . . . 98 7 9 . 16 13 16 42 112 Thermal 746 | . 1 . 53 10 . 22 128 116 10 . . . 11 27 80 251 37 Explosive 55 | . . . . . . . . 2 2 5 . . 10 5 7 14 10 Electromagnetic 32 | . . 4 18 . . . 2 . . . . . . . . . 8 Robot Hit Streak 23 | 4 11 10 16 6 . 11 11 20 18 7 6 . 9 9 21 23 16 Robot Miss Streak 8 | 1 8 3 4 2 . 2 4 3 3 1 1 . 2 2 3 4 6 Penetration Max 1 | . . . . . . . . . 1 . . . . . . 1 1 Secondary Targets 13 | . 1 . 6 . . . 1 1 . . . . . . . . 4 Max Gunslinging Chain 2 | . 1 . 1 . . . 1 1 . . . . . . . . 2 Autonomous 45 | . . . . . . . . . . . . . . . . 45 . Shots Hit Robots 985 | 6 95 15 123 7 . 15 93 78 64 8 8 . 22 29 85 221 116 Core Hits 617 | 4 37 7 56 4 . 9 41 34 38 24 1 . 20 31 53 144 114 Critical Kills 25 | . . . . . . . . . 22 1 1 . . . 1 . . Critical Parts Destroyed 21 | . . . . . . . . . 13 1 3 . . . . . 4 Critical Strikes 63 | . . . 1 . . . 2 . 35 2 7 . 2 . 3 4 7 Burn 2 | . . . . . . . 2 . . . . . . . . . . Meltdown 1 | . . . . . . . . . . . . . . . 1 . . Destroy 48 | . . . . . . . . . 35 2 7 . . . . . 4 Blast 9 | . . . . . . . . . . . . . 2 . . 4 3 Corrupt 1 | . . . 1 . . . . . . . . . . . . . . Sever 2 | . . . . . . . . . . . . . . . 2 . . Melee Attacks 41 | . . . . . . . 11 . . . . . . . 30 . . Impact . | . . . . . . . . . . . . . . . . . . Slashing 41 | . . . . . . . 11 . . . . . . . 30 . . Piercing . | . . . . . . . . . . . . . . . . . . Sneak Attacks 1 | . . . . . . . 1 . . . . . . . . . . Combat Hostiles . | . . . . . . . . . . . . . . . . . . Follow-up Attacks . | . . . . . . . . . . . . . . . . . . Damage Inflicted 37339 | 62 1307 268 2274 210 . 286 2068 2171 1510 1484 120 . 1981 1488 5090 10531 6489 Guns 10396 | 62 1250 150 1551 154 . 275 1214 1080 . . . . . . . 2305 2355 Cannons 12051 | . . 75 626 . . . 387 508 1154 68 120 . 843 751 1643 5261 615 Explosions 11959 | . . . 34 . . . 209 583 343 1416 . . 1138 737 1155 2926 3418 Melee 2526 | . . . . . . . 234 . . . . . . . 2292 . . Ramming 407 | . 57 43 63 56 . 11 24 . 13 . . . . . . 39 101 Kinetic 8090 | 62 1250 150 1260 . . . . . 986 68 120 . 410 83 311 1180 2210 Thermal 14213 | . . . 654 154 . 275 1664 1588 168 . . . 433 668 1332 6643 634 Explosive 11447 | . . . . . . . . 583 331 1416 . . 1138 737 1155 2669 3418 Electromagnetic 656 | . . 75 297 . . . 146 . 12 . . . . . . . 126 Impact . | . . . . . . . . . . . . . . . . . . Slashing 2526 | . . . . . . . 234 . . . . . . . 2292 . . Piercing . | . . . . . . . . . . . . . . . . . . Highest Corruption 34 | . . . . . . . 1 4 5 5 5 5 5 . . 3 34 Average Corruption 4 | . . . . . . . 1 2 3 5 5 5 5 . . 2 9 Corruption Purged 4 | . . . . . . . . . . . . . . . . 3 1 Corruption Blocked . | . . . . . . . . . . . . . . . . . . Effects 169 | . . . . . . . 2 17 28 14 6 3 21 . . 11 67 Message Errors 47 | . . . . . . . . 6 10 3 1 2 5 . . 3 17 Matter Fused 38 | . . . . . . . . 2 6 6 . 1 6 . . 1 16 Heat Flow Errors 17 | . . . . . . . . 2 3 1 2 . 2 . . 3 4 Energy Discharges 16 | . . . . . . . 1 3 2 1 1 . 3 . . . 5 Parts Rejected 1 | . . . . . . . . . . . . . . . . 1 . Parts Fused 2 | . . . . . . . . . 1 1 . . . . . . . Data Loss (minor) 20 | . . . . . . . 1 2 2 1 1 . 3 . . 1 9 Data Loss (major) 6 | . . . . . . . . . 1 1 . . 1 . . 2 1 Misfires 8 | . . . . . . . . 1 1 . 1 . . . . . 5 Alerts 2 | . . . . . . . . . 1 . . . . . . . 1 Misdirections 4 | . . . . . . . . . . . . . . . . . 4 Weapon Failures 8 | . . . . . . . . 1 1 . . . 1 . . . 5 Overload Shots 8 | . . . . . . . . . . . . . 8 . . . . Effects 1 | . . . . . . . . . . . . . 1 . . . . Short Circuit 1 | . . . . . . . . . . . . . 1 . . . . Overflow Damage 691 | . . . 32 . . . 47 2 49 15 . . 53 4 136 330 23 Projectiles 292 | . . . . . . . 15 . 35 . . . 7 . 6 224 5 Explosions 356 | . . . 32 . . . . 2 14 15 . . 46 4 119 106 18 Melee 43 | . . . . . . . 32 . . . . . . . 11 . . Knockbacks 22 | . . 1 . . . . 1 . 5 . 2 . 1 1 3 8 . Impact 3 | . . 1 . . . . 1 . 1 . . . . . . . . Kinetic 19 | . . . . . . . . . 4 . 2 . 1 1 3 8 . Secondary . | . . . . . . . . . . . . . . . . . . Self-Inflicted Damage 1086 | . 3 . 22 . . . 18 14 126 112 . . 140 . 121 415 115 Shots 28 | . . . 1 . . . 1 1 4 3 . . 4 . 4 7 3 Rammed 58 | . 6 5 12 3 . 3 5 . 2 . . . . . . 5 17 Targets Rammed 74 | . 14 8 12 4 . 4 5 . 2 . . . . . . 5 20 Kicked 8 | . 5 2 . . . . . . . . . . . . . . 1 Crushed 8 | . 3 1 . 1 . 1 . . . . . . . . . . 2 Highest Temperature 405 | . 20 120 165 149 . 234 243 229 316 193 253 . 293 249 201 399 405 Average Temperature 72 | . 5 61 31 55 . 80 63 45 70 64 127 . 110 67 57 104 97 Received Heat Transfer 5335 | . 228 . 501 33 . 81 349 378 238 138 48 . 502 121 228 1379 1111 Effects 4 | . . . . . . . . . . . . . . . . 3 1 Shutdowns 2 | . . . . . . . . . . . . . . . . 2 . Energy Bleed 1 | . . . . . . . . . . . . . . . . 1 . Damage (minor) 1 | . . . . . . . . . . . . . . . . . 1 Siege Activations 11 | . . . . . . . . 1 1 . . . . . . 9 . Total Turns 213 | . . . . . . . . 67 5 . . . . . . 141 . Longest Duration 67 | . . . . . . . . 67 5 . . . . . . 30 . Robots Corrupted . | . . . . . . . . . . . . . . . . . . Combat Hostiles . | . . . . . . . . . . . . . . . . . . Parts Fried 6 | . . . 5 . . . 1 . . . . . . . . . . Impact Corruptions . | . . . . . . . . . . . . . . . . . . Robots Melted 7 | . . . 1 . . . 1 2 . . . . . . 1 2 . Combat Hostiles 6 | . . . . . . . 1 2 . . . . . . 1 2 . Parts Melted 31 | . . . 1 1 . . 3 7 1 . . . . 5 2 11 . Heat Transferred 21433 | . . . 1456 333 . 592 3467 2921 148 . . . 398 1024 1994 8173 927 Parts Sabotaged 6 | . . . . . . . . . . . . . . . . 6 . Parts Stolen . | . . . . . . . . . . . . . . . . . . Parts Stripped . | . . . . . . . . . . . . . . . . . . Power Chain Reactions 3 | . . . 1 . . . 1 . 1 . . . . . . . . Alert | -11 -10 -10 -9 -9 -9 -8 -8 -8 -7 -7 -7 -7 -6 -6 -6 -5 -5 ------- Run | Yrd Mat Min Mat Min Exi Min Mat Gar Fac Low Low Dat Pro Fac Gar Fac Ext Peak Influence 2651 | 15 252 144 359 103 . 75 272 1044 980 . . . . 310 1113 2017 2651 Initial 984 | . 9 19 3 57 . . . 137 548 . . . . 40 32 583 984 Average 531 | 6 79 44 183 41 . 32 126 628 760 . . . . 169 804 1198 1239 Maximum Alert Level 5 | . 1 . 1 . . . 1 3 3 . . . . 1 4 5 5 Low Security (%) 42 | 100 86 100 56 100 . 100 68 6 . . . . . 87 9 . . Level 1 11 | . 13 . 43 . . . 31 21 . . . . . 12 2 . . Level 2 10 | . . . . . . . . 34 40 . . . . . 12 22 . Level 3 26 | . . . . . . . . 37 59 . . . . . 64 34 70 Level 4 3 | . . . . . . . . . . . . . . . 10 13 8 Level 5 4 | . . . . . . . . . . . . . . . . 30 5 High Security 1 | . . . . . . . . . . . . . . . . . 16 Max Security . | . . . . . . . . . . . . . . . . . . Squads Dispatched 45 | . 5 . 2 . . . 2 . 6 . . . . 2 . 15 13 Investigation 7 | . 3 . 1 . . . . . 2 . . . . . . 1 . Extermination 4 | . . . . . . . . . 2 . . . . 1 . 1 . Reinforcement 12 | . 2 . 1 . . . 1 . 1 . . . . 1 . 4 2 Assault 19 | . . . . . . . . . 1 . . . . . . 7 11 Garrison 3 | . . . . . . . 1 . . . . . . . . 2 . Intercept . | . . . . . . . . . . . . . . . . . . Searches Triggered . | . . . . . . . . . . . . . . . . . . Data Miner Redirects 4 | . . . . . . . . . . . . . . . . 4 . Construction Impeded 4 | . . . . . . . . . . . . . . 1 . 1 2 Haulers Reinforced 1 | . . . . . . . . . . . . . . . . 1 . Active Scanning Responses . | . . . . . . . . . . . . . . . . . . Cargo Convoy Interrupts . | . . . . . . . . . . . . . . . . . . Stealth | -11 -10 -10 -9 -9 -9 -8 -8 -8 -7 -7 -7 -7 -6 -6 -6 -5 -5 --------- Run | Yrd Mat Min Mat Min Exi Min Mat Gar Fac Low Low Dat Pro Fac Gar Fac Ext Distress Signals 14 | . 2 . 5 . . . 3 . 1 . . . . . . 1 2 Communications Jammed 4 | . . . . . . . . . . . . . . . . 4 . Distress Signals 4 | . . . . . . . . . . . . . . . . 4 . Times Spotted 452 | . 34 10 46 5 . 6 34 30 31 18 1 . 12 12 29 80 104 Peak Tracking Total 24 | . 4 5 7 3 . 3 5 6 6 9 1 . 4 4 7 7 24 Tactical Retreats 28 | . 2 . 2 . . 1 1 3 4 1 . . 1 . 2 5 6 Traps | -11 -10 -10 -9 -9 -9 -8 -8 -8 -7 -7 -7 -7 -6 -6 -6 -5 -5 ------- Run | Yrd Mat Min Mat Min Exi Min Mat Gar Fac Low Low Dat Pro Fac Gar Fac Ext Traps Triggered 26 | . 2 . 2 . . . . 3 . . . . . . 10 . 9 Indirectly . | . . . . . . . . . . . . . . . . . . Trap Hack Attempts . | . . . . . . . . . . . . . . . . . . Triggered . | . . . . . . . . . . . . . . . . . . Disarmed . | . . . . . . . . . . . . . . . . . . Reprogrammed . | . . . . . . . . . . . . . . . . . . Reused . | . . . . . . . . . . . . . . . . . . Traps Extracted . | . . . . . . . . . . . . . . . . . . Installed . | . . . . . . . . . . . . . . . . . . Triggered . | . . . . . . . . . . . . . . . . . . Machines | -11 -10 -10 -9 -9 -9 -8 -8 -8 -7 -7 -7 -7 -6 -6 -6 -5 -5 ---------- Run | Yrd Mat Min Mat Min Exi Min Mat Gar Fac Low Low Dat Pro Fac Gar Fac Ext Machines Disabled 42 | . . . . . . . 1 2 8 2 . . . . 7 15 7 Max in Single Turn 3 | . . . . . . . 1 2 3 2 . . . . 2 3 1 Garrison Access 4 | . . . . . . . . . 1 . . . . . . 3 . Garrison Relay 3 | . . . . . . . . . . . . . . . 3 . . Phase Generator 2 | . . . . . . . . 1 . . . . . . 1 . . Energy Cycler 1 | . . . . . . . . . . . . . . . . . 1 Machines Repaired . | . . . . . . . . . . . . . . . . . . Machines Dismantled . | . . . . . . . . . . . . . . . . . . Machines Sabotaged . | . . . . . . . . . . . . . . . . . . Overloaded Fab Kills . | . . . . . . . . . . . . . . . . . . Hacking | -11 -10 -10 -9 -9 -9 -8 -8 -8 -7 -7 -7 -7 -6 -6 -6 -5 -5 --------- Run | Yrd Mat Min Mat Min Exi Min Mat Gar Fac Low Low Dat Pro Fac Gar Fac Ext Machines Accessed 67 | . 9 . 14 . 1 . 11 1 11 . . 3 . 4 1 8 4 Terminals 42 | . 6 . 11 . . . 9 1 5 . . . . 3 1 3 3 Fabricators 1 | . . . . . . . . . 1 . . . . . . . . Repair Stations 6 | . 1 . 1 . . . 1 . 2 . . . . . . 1 . Recycling Units 6 | . 2 . 1 . . . . . 1 . . . . . . 1 1 Scanalyzers 2 | . . . 1 . . . . . 1 . . . . . . . . Garrison Access 6 | . . . . . . . 1 . 1 . . . . 1 . 3 . Total Hacks 205 | . 39 . 45 . 1 . 33 1 33 . . 21 . 6 2 16 8 Successful 121 | . 24 . 30 . 1 . 15 . 15 . . 21 . 4 . 8 3 Failed 83 | . 14 . 15 . . . 18 1 18 . . . . 2 2 8 5 Catastrophic 11 | . 2 . 1 . . . 1 . 3 . . . . . . 3 1 Database Lockouts 1 | . 1 . . . . . . . . . . . . . . . . Manual 101 | . 25 . 28 . . . 20 . 16 . . . . 2 . 2 8 Terminals 131 | . 30 . 38 . . . 29 1 15 . . . . 5 2 4 7 Fabricators 4 | . . . . . . . . . 4 . . . . . . . . Repair Stations 21 | . 5 . 3 . . . 2 . 5 . . . . . . 6 . Recycling Units 12 | . 4 . 2 . . . . . 4 . . . . . . 1 1 Scanalyzers 4 | . . . 2 . . . . . 2 . . . . . . . . Garrison Access 11 | . . . . . . . 2 . 3 . . . . 1 . 5 . Terminal Hacks 61 | . 10 . 15 . 1 . 6 . 3 . . 21 . 3 . 2 . Record 7 | . . . . . 1 . . . . . . 6 . . . . . Part Schematic 11 | . . . . . . . . . 1 . . 9 . 1 . . . Robot Schematic 3 | . . . . . . . . . . . . 3 . . . . . Robot Analysis 4 | . 3 . 1 . . . . . . . . . . . . . . Prototype ID Bank 5 | . . . 1 . . . 1 . . . . 3 . . . . . Open Door 1 | . . . . . . . . . . . . . . . . 1 . Open DSF 1 | . . . . . . . . . . . . . . 1 . . . Branch Access Points 3 | . . . . . . . . . 1 . . . . 1 . 1 . Alert Level 7 | . 2 . 4 . . . 1 . . . . . . . . . . Unreport Threat 7 | . 2 . 3 . . . 2 . . . . . . . . . . Locate Traps 4 | . 1 . 2 . . . 1 . . . . . . . . . . Patrol Status 1 | . . . 1 . . . . . . . . . . . . . . Transport Status 1 | . 1 . . . . . . . . . . . . . . . . Investigation Status 2 | . . . 1 . . . . . 1 . . . . . . . . Hauler Manifests 1 | . . . 1 . . . . . . . . . . . . . . Zone Layout 3 | . 1 . 1 . . . 1 . . . . . . . . . . Fabricator Hacks 1 | . . . . . . . . . 1 . . . . . . . . Network Status 1 | . . . . . . . . . 1 . . . . . . . . Repair Station Hacks 10 | . 4 . 2 . . . . . 1 . . . . . . 3 . Scan Component 6 | . 2 . 1 . . . . . 1 . . . . . . 2 . Repair 4 | . 2 . 1 . . . . . . . . . . . . 1 . Recycling Unit Hacks 1 | . . . . . . . . . 1 . . . . . . . . Retrieve Components 1 | . . . . . . . . . 1 . . . . . . . . Scanalyzer 4 | . . . 2 . . . . . 2 . . . . . . . . Insert Component 2 | . . . 1 . . . . . 1 . . . . . . . . Analyze 2 | . . . 1 . . . . . 1 . . . . . . . . Garrison Access Hacks 5 | . . . . . . . 1 . 1 . . . . 1 . 2 . Unlock Access 2 | . . . . . . . 1 . . . . . . 1 . . . Seal Access 3 | . . . . . . . . . 1 . . . . . . 2 . Unauthorized Hacks 39 | . 10 . 11 . . . 8 . 6 . . . . . . 1 3 Terminals 30 | . 8 . 9 . . . 8 . 3 . . . . . . . 2 Track 1 | . . . 1 . . . . . . . . . . . . . . Botnet 10 | . 2 . 2 . . . 2 . 2 . . . . . . . 2 Operators 3 | . 1 . 1 . . . 1 . . . . . . . . . . Skim 16 | . 5 . 5 . . . 5 . 1 . . . . . . . . Fabricators 1 | . . . . . . . . . 1 . . . . . . . . Haulers 1 | . . . . . . . . . 1 . . . . . . . . Repair Stations 1 | . . . 1 . . . . . . . . . . . . . . Mechanics 1 | . . . 1 . . . . . . . . . . . . . . Recycling Units 7 | . 2 . 1 . . . . . 2 . . . . . . 1 1 Recyclers 2 | . . . . . . . . . 1 . . . . . . 1 . Mask 3 | . . . 1 . . . . . 1 . . . . . . . 1 Tunnel 2 | . 2 . . . . . . . . . . . . . . . . Scanalyzers . | . . . . . . . . . . . . . . . . . . Garrison Access . | . . . . . . . . . . . . . . . . . . Data Cores Recovered 4 | . . . 1 . . . . . . . . . . 2 . . 1 Used 2 | . . . 1 . . . . . . . . . . 1 . . . Hacking Detections 51 | . 7 . 11 . . . 10 1 10 . . . . 2 1 6 3 Full Trace Events 4 | . . . 1 . . . . . 2 . . . . . . 1 . Feedback Events 1 | . . . . . . . . . . . . . . . . 1 . Corruption 1 | . . . . . . . . . . . . . . . . 1 . Feedback Blocked 1 | . . . . . . . . . . . . . . . . 1 . Robot Schematics Acquired 3 | . . . . . . . . . . . . 3 . . . . . Robots Built . | . . . . . . . . . . . . . . . . . . Authchips . | . . . . . . . . . . . . . . . . . . Time . | . . . . . . . . . . . . . . . . . . Total Robot Build Rating . | . . . . . . . . . . . . . . . . . . Part Schematics Acquired 13 | . . . 1 . . . . . 2 . . 9 . 1 . . . Parts Built . | . . . . . . . . . . . . . . . . . . Authchips . | . . . . . . . . . . . . . . . . . . Time . | . . . . . . . . . . . . . . . . . . Total Part Build Rating . | . . . . . . . . . . . . . . . . . . Parts Repaired 4 | . 2 . 1 . . . . . . . . . . . . 1 . Time 164 | . 52 . 50 . . . . . . . . . . . . 62 . Parts Recycled . | . . . . . . . . . . . . . . . . . . Recycled Matter . | . . . . . . . . . . . . . . . . . . Retrieved Matter . | . . . . . . . . . . . . . . . . . . Retrieved Components 10 | . . . . . . . . . 10 . . . . . . . . Parts Scanalyzed 2 | . . . 1 . . . . . 1 . . . . . . . . Part Schematics Acquired 2 | . . . 1 . . . . . 1 . . . . . . . . Parts Damaged 1 | . . . 1 . . . . . . . . . . . . . . Bothacking | -11 -10 -10 -9 -9 -9 -8 -8 -8 -7 -7 -7 -7 -6 -6 -6 -5 -5 ------------ Run | Yrd Mat Min Mat Min Exi Min Mat Gar Fac Low Low Dat Pro Fac Gar Fac Ext Used RIF Installer . | . . . . . . . . . . . . . . . . . . Robots Hacked . | . . . . . . . . . . . . . . . . . . Non-combat . | . . . . . . . . . . . . . . . . . . Combat . | . . . . . . . . . . . . . . . . . . Robot Hacks Applied . | . . . . . . . . . . . . . . . . . . Relay Couplers Released 16 | . . . . . . . . 3 . . . . . . 11 2 . Machine Destruction 13 | . . . . . . . . . . . . . . . 11 2 . Programmers 3 | . . . . . . . . 3 . . . . . . . . . Fabnet Peak Effective % . | . . . . . . . . . . . . . . . . . . Robots Rewired 2 | . . . . . . . . . . 2 . . . . . . . Allies Hacked . | . . . . . . . . . . . . . . . . . . Hacks Repelled . | . . . . . . . . . . . . . . . . . . Allies | -11 -10 -10 -9 -9 -9 -8 -8 -8 -7 -7 -7 -7 -6 -6 -6 -5 -5 -------- Run | Yrd Mat Min Mat Min Exi Min Mat Gar Fac Low Low Dat Pro Fac Gar Fac Ext Total Allies 15 | . . . . 4 . . . . . 2 . . . . . . 9 Largest Group 8 | . . . . 3 2 2 . . . 2 2 1 1 . . . 8 Highest-Rated Group 356 | . . . . 40 24 24 . . . 46 46 16 16 . . . 356 Highest-Rated Ally 159 | . . . . 31 16 16 . . . 30 30 16 16 . . . 159 Warlord Squad Rendezvous 1 | . . . . . . . . . . . . . . . . 1 . Chimera 1 | . . . . . . . . . . . . . . . . 1 . Total Orders 7 | . . . . . . . . . . . . . . 4 . 3 . EXPLORE 3 | . . . . . . . . . . . . . . 2 . 1 . RETURN 4 | . . . . . . . . . . . . . . 2 . 2 . Ally Attacks 246 | . . . . 24 . 10 . . . 14 8 . 3 . . . 187 Total Damage 5560 | . . . . 285 . 78 . . . 180 168 . . . . . 4849 Kills 48 | . . . . 4 . . . . . 3 . . . . . . 41 Allies Corrupted 1 | . . . . . . 1 . . . . . . . . . . . Allies Melted . | . . . . . . . . . . . . . . . . . . Intel | -11 -10 -10 -9 -9 -9 -8 -8 -8 -7 -7 -7 -7 -6 -6 -6 -5 -5 ------- Run | Yrd Mat Min Mat Min Exi Min Mat Gar Fac Low Low Dat Pro Fac Gar Fac Ext Robot Analysis Total 4 | . 3 . 1 . . . . . . . . . . . . . . Derelict Logs Recovered 8 | . . 2 . 1 . . . . . . 2 . 3 . . . . Drone Launches 5 | . . . . . . . . . . . . . . 3 . 2 . Drone Recoveries 5 | . . . . . . . . . . . . . . 3 . 2 . Exploration | -11 -10 -10 -9 -9 -9 -8 -8 -8 -7 -7 -7 -7 -6 -6 -6 -5 -5 ------------- Run | Yrd Mat Min Mat Min Exi Min Mat Gar Fac Low Low Dat Pro Fac Gar Fac Ext Turns Passed 19408 | 124 1775 700 2100 1000 230 990 1195 1205 1645 642 393 113 737 875 1595 2232 1857 Spaces Moved 9432 | 69 896 432 992 594 139 435 518 577 944 414 287 86 357 493 643 845 711 Core 6 | 5 . . . . . . . . . . . . . . . . 1 Treads 5952 | . 514 195 864 594 139 435 518 577 277 . . . 256 177 154 841 411 Legs 678 | 64 300 3 . . . . . . . . . . . . 8 4 299 Wheels 2796 | . 82 234 128 . . . . . 667 414 287 86 101 316 481 . . Hover . | . . . . . . . . . . . . . . . . . . Flight . | . . . . . . . . . . . . . . . . . . Fastest Speed 50 | 50 115 115 130 160 160 160 152 150 130 145 130 130 130 130 135 163 166 Average Speed 160 | 114 143 135 156 160 160 208 153 151 144 145 130 130 176 144 179 175 208 Slowest Speed 1450 | 120 190 190 240 160 160 240 160 155 150 145 130 130 233 305 260 260 1450 Overloaded Moves . | . . . . . . . . . . . . . . . . . . Propulsion Burnouts . | . . . . . . . . . . . . . . . . . . Robots Hopped . | . . . . . . . . . . . . . . . . . . Cave-ins Triggered . | . . . . . . . . . . . . . . . . . . Exploration Rate (%) 61 | 5 95 90 92 99 53 96 52 69 25 61 49 68 62 17 64 25 76 Regions Visited 17 Branch Regions 9 Pre-discovered Areas 12 | . 3 2 2 . 1 . 1 . . 1 1 1 . . . . . Known Exits Taken 8 | . . 1 1 . . 1 1 . 1 . 1 . . 1 . 1 . Unknown Exits Taken 7 | 1 1 . . 1 1 . . . . 1 . 1 1 . . . . Scrap Searched 10 | . . 1 . 3 . 1 . . . . 2 . 3 . . . . Spaces Dug 70 | . 1 . . . . . 3 6 3 10 . . 21 . 22 4 . Terrain Destroyed 749 | . 1 . 2 . . . 6 93 32 44 . . 118 65 130 178 80 Melee 3 | . . . . . . . 3 . . . . . . . . . . Projectile 85 | . 1 . . . . . . . 5 . . . 5 16 3 44 11 AOE 661 | . . . 2 . . . 3 93 27 44 . . 113 49 127 134 69 Terrain Rammed . | . . . . . . . . . . . . . . . . . . Walls Destroyed . | . . . . . . . . . . . . . . . . . . Machines Disabled . | . . . . . . . . . . . . . . . . . . Actions | -11 -10 -10 -9 -9 -9 -8 -8 -8 -7 -7 -7 -7 -6 -6 -6 -5 -5 --------- Run | Yrd Mat Min Mat Min Exi Min Mat Gar Fac Low Low Dat Pro Fac Gar Fac Ext Total 12167 | 103 1217 508 1339 633 147 496 753 788 1111 441 298 88 417 611 933 1347 937 Wait 957 | 17 179 29 125 20 9 25 71 85 53 2 . . 12 18 66 224 22 Move 9415 | 68 895 431 991 593 138 434 517 576 943 413 286 85 356 492 642 844 711 Hop . | . . . . . . . . . . . . . . . . . . Pick Up 181 | 7 17 4 26 3 . 6 17 18 10 1 1 . 4 16 14 22 15 Fast Attach 115 | 7 4 1 15 . . . 5 2 5 . 2 1 2 11 9 35 16 Attach 75 | . 1 1 7 . . 1 2 2 8 . 1 . 4 4 1 25 18 Detach 12 | . . . 2 . . . . . 2 . . . . . . 5 3 Swap 259 | . 16 12 30 4 . 9 43 22 20 7 2 . 13 11 19 29 22 Drop 200 | . 12 5 35 4 . 6 16 20 9 1 2 2 1 23 23 20 21 Fire 738 | 4 79 14 96 5 . 11 66 63 59 9 4 . 25 36 62 138 67 Melee 41 | . . . . . . . 11 . . . . . . . 30 . . Ram 5 | . 1 . 1 . . . . . . . . . . . . . 3 Kick 8 | . 5 2 . . . . . . . . . . . . . . 1 Crush 64 | . 8 6 11 4 . 4 5 . 2 . . . . . . 5 19 Escape Stasis 85 | . . . . . . . . . . . . . . . 66 . 19 Rewire 12 | . . 3 . . . . . . . 8 . . . . 1 . . Trap . | . . . . . . . . . . . . . . . . . . Miscellaneous . | . . . . . . . . . . . . . . . . . . Route ------- -11/Scrapyard -10/Materials (discovered 5 exits: *Mat x3 / [*Min x2]) -10/Mines -9/Materials (discovered 7 exits: *Mat x3 / *Min x2 / *Sto x2) -9/Mines (discovered 3 exits: *Mat x2 / *Exi) -9/Exiles -8/Mines (discovered 2 exits: *Mat x2) -8/Materials (discovered 3 exits: *Fac x2 / Gar) -8/Garrison -7/Factory (discovered 2 exits: *Low x2) -7/Lower Caves -7/Lower Caves -7/Data Miner -6/Proximity Caves -6/Factory (discovered 4 exits: *Fac / *Low x2 / Gar) -6/Garrison (discovered 2 exits: *Fac x2) -5/Factory (discovered 5 exits: [*Fac] / *Upp x2 / *Ext x2) -5/Extension History --------- Turn | Location | Event 2 | -11/Scrapyard | Discovered new exit (range 16) 125 | -11/Scrapyard | Entered Materials 304 | -10/Materials | Build established: Mutant 372 | -10/Materials | Discovered new exit (range 15) 814 | -10/Materials | Repaired Lgt. Armor Plating 839 | -10/Materials | Discovered new exit (range 15) 924 | -10/Materials | Learned location of Subcaves (-10) 946 | -10/Materials | Discovered new exit (range 16) 1001 | -10/Materials | Learned Storage terminal intel 1066 | -10/Materials | Learned 4 Recycling zone layouts 1069 | -10/Materials | Central database locked down 1122 | -10/Materials | Learned location of 2 exits from Subcaves 1167 | -10/Materials | Learned 2 Storage zone layouts 1201 | -10/Materials | Learned location of 2 exits from Subcaves 1225 | -10/Materials | Identified exit to Materials 1429 | -10/Materials | Learned 4 Subcaves zone layouts 1460 | -10/Materials | Repaired Assault Rifle 1900 | -10/Materials | Entered Mines 1901 | -10/Mines | Assembled infested the area 1906 | -10/Mines | Assisted by a Guerilla fighting off Assembled 1930 | -10/Mines | Core integrity fell below 50% 1969 | -10/Mines | Learned location of Storage (-9) 1971 | -10/Mines | Learned 2 Materials zone layouts 2600 | -10/Mines | Entered Materials 2600 | -9/Materials | Evolved 2 slots: Propulsion x1, Utility x1 2601 | -9/Materials | Identified exit to Storage 2841 | -9/Materials | Discovered new exit (range 15) 3037 | -9/Materials | Discovered exit to Storage (range 15) 3119 | -9/Materials | Build established: Scavenger-Mutant 3518 | -9/Materials | Repaired Flexi-carbon Leg 3664 | -9/Materials | Discovered new exit (range 4) 4065 | -9/Materials | Learned Storage trap positions 4118 | -9/Materials | Identified exit to Materials 4160 | -9/Materials | Learned location of Mines (-8) 4210 | -9/Materials | Identified exit to Mines 4277 | -9/Materials | Learned location of 2 exits from Materials 4324 | -9/Materials | Learned 2 Storage zone layouts 4700 | -9/Materials | Entered Mines 4700 | -9/Mines | Discovered exit to Materials (range 12) 4786 | -9/Mines | Discovered exit to Materials (range 7) 4792 | -9/Mines | Received a Mining Laser from a helpful Derelict 5084 | -9/Mines | Assisted by bots powering up and referring to "LRC-V3" 5259 | -9/Mines | Learned Materials terminal intel 5289 | -9/Mines | Deemed a non-threat by the Exiles lab entrance 5291 | -9/Mines | Discovered new exit (range 5) 5433 | -9/Mines | A weapon hastily lodged in a ceiling crevice suddenly fell to the ground 5700 | -9/Mines | Entered Exiles 5700 | -9/Exiles | Accompanied by 2 allies 5740 | -9/Exiles | Met 8R-AWN 5766 | -9/Exiles | Met EX-HEX 5812 | -9/Exiles | Met EX-BIN 5830 | -9/Exiles | Met EX-DEC 5846 | -9/Exiles | Learned location of Zion (-6) 5908 | -9/Exiles | Discovered new exit (range 10) 5930 | -9/Exiles | Entered Mines 5930 | -8/Mines | Accompanied by 2 allies 6657 | -8/Mines | Discovered exit to Materials (range 7) 6746 | -8/Mines | Discovered exit to Materials (range 10) 6920 | -8/Mines | Entered Materials 6920 | -8/Materials | Evolved 2 slots: Propulsion x1, Utility x1 6921 | -8/Materials | Identified exit to Factory 6922 | -8/Materials | Loaded intel: 11 terminal locations 7559 | -8/Materials | Build established: Mutant 7900 | -8/Materials | Learned Factory trap positions 7951 | -8/Materials | Learned location of 1 exit from Storage 8027 | -8/Materials | Learned Factory emergency access door positions 8034 | -8/Materials | Identified exit to Garrison 8048 | -8/Materials | Garrison activated, responded to threat 8083 | -8/Materials | Learned location of 1 exit from Storage 8114 | -8/Materials | Learned 4 Recycling zone layouts 8115 | -8/Materials | Entered Garrison 8217 | -8/Garrison | Triggered checkpoint 8333 | -8/Garrison | Phase Generator disabled 8511 | -8/Garrison | Triggered checkpoint 8674 | -8/Garrison | Discovered exit to Factory (range 11) 8861 | -8/Garrison | Triggered checkpoint 8867 | -8/Garrison | Triggered checkpoint 8894 | -8/Garrison | Destroyed 7 combat bots 9320 | -8/Garrison | Entered Factory 9320 | -7/Factory | Evolved 2 slots: Utility x2 9321 | -7/Factory | Loaded intel: 89 trap records 10085 | -7/Factory | Identified exit to Lower Caves 10120 | -7/Factory | First assault squad dispatched 10965 | -7/Factory | Entered Lower Caves 10977 | -7/Lower Caves | Met a Warlord Commander 10978 | -7/Lower Caves | Learned location of Warlord (-5) 10979 | -7/Lower Caves | Warlord Commander delivered Encrypted Comm Array 10983 | -7/Lower Caves | Found Encrypted Comm Array 11176 | -7/Lower Caves | Attracted the attention of an 0b10 outpost 11209 | -7/Lower Caves | Destroyed 9 combat bots 11280 | -7/Lower Caves | Attracted the attention of an 0b10 checkpoint 11590 | -7/Lower Caves | Discovered new exit (range 5) 11607 | -7/Lower Caves | Entered another Lower Caves area 11607 | -7/Lower Caves | Accompanied by 2 allies 11609 | -7/Lower Caves | Attracted the attention of an 0b10 checkpoint 11892 | -7/Lower Caves | Identified exit to Data Miner 12000 | -7/Lower Caves | Entered Data Miner 12000 | -7/Data Miner | Accompanied by 1 ally 12001 | -7/Data Miner | Discovered new exit (range 6) 12026 | -7/Data Miner | Met Data Miner 12050 | -7/Data Miner | Learned location of Section 7 (-2) 12050 | -7/Data Miner | Acquired the access code to Warlord's prototype stash 12068 | -7/Data Miner | Received God Mode back door access code from Data Miner 12113 | -7/Data Miner | Entered Proximity Caves 12113 | -6/Proximity Caves | Accompanied by 1 ally 12254 | -6/Proximity Caves | Spotted B-75 Beast 12279 | -6/Proximity Caves | Destroyed B-75 Beast 12600 | -6/Proximity Caves | Attracted the attention of an 0b10 checkpoint 12712 | -6/Proximity Caves | Learned 4 Factory zone layouts 12792 | -6/Proximity Caves | Learned Factory garrison access intel 12798 | -6/Proximity Caves | Learned Factory trap positions 12806 | -6/Proximity Caves | Discovered new exit (range 4) 12850 | -6/Proximity Caves | Entered Factory 12850 | -6/Factory | Evolved 2 slots: Power x1, Utility x1 12852 | -6/Factory | Loaded intel: 85 trap records 12853 | -6/Factory | Loaded intel: 4 garrison access locations 12914 | -6/Factory | Identified exit to Lower Caves 13560 | -6/Factory | Identified exit to Garrison 13659 | -6/Factory | Discovered new exit (range 5) 13725 | -6/Factory | Entered Garrison 13751 | -6/Garrison | Triggered checkpoint 13793 | -6/Garrison | Garrison Relay disabled 13880 | -6/Garrison | Triggered checkpoint 13882 | -6/Garrison | Triggered checkpoint 13883 | -6/Garrison | Triggered checkpoint 13949 | -6/Garrison | Destroyed 14 combat bots 14001 | -6/Garrison | Discovered new exit (range 9) 14053 | -6/Garrison | Triggered checkpoint 14084 | -6/Garrison | Phase Generator disabled 14122 | -6/Garrison | Garrison Relay disabled 14214 | -6/Garrison | Build established: Scavenger-Mutant 14429 | -6/Garrison | Triggered checkpoint 14463 | -6/Garrison | Garrison Relay disabled 14694 | -6/Garrison | Triggered checkpoint 14715 | -6/Garrison | Discovered new exit (range 14) 15320 | -6/Garrison | Entered Factory 15320 | -5/Factory | Evolved 2 slots: Utility x1, Weapon x1 15405 | -5/Factory | Identified exit to Upper Caves 15405 | -5/Factory | Identified exit to Extension 15510 | -5/Factory | Garrison activated, responded to threat 15620 | -5/Factory | First assault squad dispatched 15788 | -5/Factory | Discovered new exit (range 15) 15855 | -5/Factory | Build established: Scavenger-Tank 15942 | -5/Factory | Incoming assault squad redirected 16183 | -5/Factory | Lost 5 parts (4u1w) 16218 | -5/Factory | Build established: Scavenger-Gunner 16487 | -5/Factory | Repaired Imp. Heavy Treads 16764 | -5/Factory | Lost 5 parts (1p1n2u1w) 16849 | -5/Factory | Incoming assault squad redirected 17016 | -5/Factory | Build established: Scavenger-Mutant 17135 | -5/Factory | Incoming assault squad redirected 17279 | -5/Factory | Joined by Warlord Chimera squad 17305 | -5/Factory | Incoming assault squad redirected 17358 | -5/Factory | Lost 6 parts (2p1n2u1w) 17552 | -5/Factory | Entered Extension 17602 | -5/Extension | Build established: Scavenger-Gunner 17683 | -5/Extension | Rescued A7 17806 | -5/Extension | Rescued a captive Derelict 17806 | -5/Extension | Rescued a captive Derelict 17984 | -5/Extension | Build established: Scavenger-Skirmisher 17989 | -5/Extension | Rescued a captive Derelict 18165 | -5/Extension | Rescued a captive Derelict 18165 | -5/Extension | Rescued a captive Derelict 18218 | -5/Extension | Rescued a captive Derelict 18219 | -5/Extension | Rescued a captive Derelict 18313 | -5/Extension | Build established: Scavenger-Tank 18348 | -5/Extension | Rescued a captive Derelict 18452 | -5/Extension | First assault squad dispatched 18677 | -5/Extension | Lost 3 allies 18874 | -5/Extension | Spotted B-75 Beast 18877 | -5/Extension | Disrupted transfer network 18885 | -5/Extension | Destroyed B-75 Beast 18892 | -5/Extension | Core integrity fell below 50% 18899 | -5/Extension | Spotted B-75 Beast 18911 | -5/Extension | Allies destroyed B-75 Beast 19095 | -5/Extension | Energy Cycler disabled 19095 | -5/Extension | Rescued a captive Derelict 19097 | -5/Extension | Rescued a captive Derelict 19104 | -5/Extension | High security lockdown imminent 19105 | -5/Extension | Rescued a captive Derelict 19106 | -5/Extension | Rescued a captive Derelict 19111 | -5/Extension | Rescued a captive Derelict 19184 | -5/Extension | High security lockdown engaged 19207 | -5/Extension | Destroyed 7 combat bots 19257 | -5/Extension | System corruption reached 10% 19289 | -5/Extension | Lost 5 parts (1p2u2w) 19317 | -5/Extension | Destroyed 12 combat bots 19345 | -5/Extension | Extracted ID and sensor layout for unrecognized location from A7's data core 19361 | -5/Extension | Core integrity fell below 20% 19384 | -5/Extension | System corruption reached 30% 19409 | -5/Extension | Destroyed by Y-64 Sentinel with KE Penetrator Last Messages --------------- 19386_ Enh. Gauss Cannon destroyed. 19387_ System corrupted: Matter fused (-10). 19388_ Crushed L-41 Fighter. 19388_ L-41 Fighter destroyed. 19389_ Acquired 20 matter. 19390_ Slammed into G-50 Soldier. 19393_ Arm. Medium Treads destroyed. 19396_ Imp. Medium Treads destroyed. 19398_ Acquired 3 matter. 19401_ Dropped Hcp. Storage Unit. 19402_ Dropped Antimatter Reactor. 19403_ Slammed into G-67 Veteran. 19404_ Acquired 2 matter. 19406_ Slammed into G-50 Soldier. 19406_ Plasma Cannon destroyed. 19406_ Penetrated by Slug. 19408_ Slammed into Y-64 Sentinel. 19408_ Penetrated by Slug. 19409_ Slammed into Y-64 Sentinel. 19409_ Penetrated by Slug. Map ----- +----------------------------------------------------+ | % ]##???????????????? | | ["" ! ####????????????? | | ! [ ###??????????? | | #% = # #??###?????? | | # = % "#???# #?????? | | # ""! % % "#???# #?????? | | ##"T! ] [%% #???T #?????? | | ?#""! %* "##### ##????? | | ?#"" == % = ![* #????? | | ?### =! %% =*=%=#????? | | ?# !%=/ / !!!! * *%!=%/#????? | | = / !/%![%%%%m#????? | | % !##### *=! #######h#????? | | ##%????## # # #?????#!#????? | | ?#????????### #####?????#g#????? | | ????????????##??????????#g#????? | | ????????????????????????#p#????? | | ????????????????????????#g#????? | | ????????????????????????#b#????? | | ????????????????????????#g#????? | | ????????????????????????#g#????? | | ????????????????????????#g#????? | | ????????????????????????#g#????? | | ????????????????????????#Y#????? | | ????????????????????????#Y#????? | | ????????????????????????#@#????? | | ????????????????????????#Y#????? | | ????????????????????????#Y#????? | | ????????????????????????#Y#????? | | ????????????????????????#m#????? | | ????????????????????????"Y"????? | | ????????????????????????" "????? | | ???????????????????????? ????? | | ???????????????????????? ????? | | ???????????????????????? ????? | | ???????????????????????? ????? | | ????????????????????????= ????? | | ???????????????????????? ????? | | ???????????????????????? ????? | | ???????????????????????? ????? | | ???????????????????????? ????? | | ???????????????????????????????? | | ???????????????????????????????? | | ???????????????????????????????? | | ???????????????????????????????? | | | | | | | | | | | +----------------------------------------------------+ Best States ------------- Heat Dissipation 102 Energy Generation 35 Energy Capacity 765 Matter Stores 300 Matter Capacity 300 Sight Range 16 Robot Scan Range 16 Terrain Scan Density 10 ECM Strength 1 Jamming Range 14 Power Amplification 20 EM Shielding 2 Armor Coverage 1200 Resistance: KI 30 Resistance: TH 25 Utility Shielding 66 Evasion (%) 55 Targeting Accuracy 16 Target Analysis 6 Core Analysis 6 Recoil Reduction 4 Matter Filtering 30 Particle Charging 15 Offensive Hacking 12 Defensive Hacking 10 Authchip Count 2 Item Schematics ----------------- Flexi-carbon Leg | -9/Materials | Scanalyzed Matter Filter | -7/Factory | Scanalyzed Imp. Transmission Jammer | -7/Factory | Hacked Combat Drone Bay | -7/Data Miner | Free Lgt. Regenerative Plating | -7/Data Miner | Free Cld. Aerolev Unit | -7/Data Miner | Free Gravity Neutralizer | -7/Data Miner | Free Cld. Plasma Cannon | -7/Data Miner | Free Hvy. Treads | -7/Data Miner | Free Mass Driver | -7/Data Miner | Free Adv. Terrain Scanner | -7/Data Miner | Free Hvy. Disruptor Cannon | -7/Data Miner | Free Lrn. Missile Launcher | -6/Factory | Hacked Robot Schematics ------------------ M-14 Sweeper | -7/Data Miner | Free H-66 Slayer | -7/Data Miner | Free A-15 Conveyor | -7/Data Miner | Free Fabricated ------------ Nothing Alien Tech Used ----------------- None Achievements -------------- None Challenges ------------ None Game ------ Seed MissileSiegeCapacitor Manual? 0 Play Time 03:11:05 Cumulative 213.8 hours Start 2024.09.06 @ 17:07:39 End 2024.09.08 @ 20:21:45 Sessions 5 Manual Loads 0 Difficulty Rogue Special Mode None Game No. 102 Rogue 102 Adventurer 0 Explorer 0 Win Type - Total 7 Types 5/0/1/1/0/0/0/0/0 Lore% 70 Gallery% 69 Achievement% 60 Wizard Run 0 Options --------- Layout 0 ASCII 0 Keyboard 0 Movement Numpad Keybinds 0 Fullscreen 2 Font 18/SmallcapsGlow Map View 76x50 Zoom Use 0% Tactical HUD 1 Map Filters NONE Filters NONE Steam 1 RUN: 427591d9-1dd5-4751-9540-682b57270d19